{"text_format":"2","workbook":"xlsx","n_sheets":4,"sheets":["SLP","RLM","Preisblätter","Tabelle4"],"not_rendered":{"charts":0,"images":2,"macros":0,"external_links":0,"defined_names":0,"comments":0,"pivot_tables":0},"unopened":[],"bounds":{"document_bytes":16777216,"sheet_cells":100000,"run_cost":"one","rows_first":2000,"rows_last":500,"rows_between":2000,"halvings":0,"cell_chars":16384,"cell_head_chars":4096},"cells_cut":0,"cells_raw":0,"read":"whole","date_system":"1900"}

{"sheet":"SLP","index":0,"n_rows":31,"n_cols":9,"rows_kept":31,"cut":false,"hidden":false,"merged":[]}
[]
[null,"Netzentgeltrechner SLP 2026"]
[]
[]
[]
[null,"Bitte befüllen Sie die grünen Eingabefelder, um ihr prognostiziertes Netzentgelt zu ermitteln. "]
[]
[null,"Jahresarbeit",null,null,null,4000,null,null,"1 Personenhaushalt entspricht ca. 1500 kWh"]
[{"$nulls":8},"2 Personenhaushalt entspricht ca. 2500 kWh"]
[null,"Grundpreis €/a  netto",null,null,null,{"$f":"Preisblätter!C16","v":77},null,null,"3 Personenhaushalt entspricht ca. 3500 kWh"]
[null,"Arbeitspreis ct/kWh netto",null,null,null,{"$f":"Preisblätter!C17","v":10.724392000302499},null,null,"4 Personenhaushalt entspricht ca. 4250 kWh"]
[{"$nulls":8},"5 Personenhaushalt entspricht ca. 5000 kWh"]
[null,"Jahresentgelt exklusive Messung netto",null,null,null,{"$f":"F11/100*F8+F10","v":505.97568001209999}]
[]
[]
[null,"Messstellenbetrieb","€/Jahr netto","\"X\" eintragen, wenn zutreffend"]
[]
[null,"Eintarifzähler",{"$f":"Preisblätter!I15","v":8.58},"x",null,{"$f":"IF(D18=\"x\",C18,0)","v":8.58}]
[]
[null,"Zweitarifzähler (inkl. Tarifschaltung)",{"$f":"Preisblätter!I16","v":9.6199999999999992},null,null,{"$f":"IF(D20=\"x\",C20,0)","v":0}]
[]
[null,"EDL21 nach § 21b (3a) und (3b) EnWG a.F. (übergangsweise)",{"$f":"Preisblätter!I17","v":16.809999999999999},null,null,0]
[]
[null,"Wandler Niederspannung",{"$f":"Preisblätter!I18","v":23.5},null,null,0]
[]
[null,"Kundendienstrelais",{"$f":"Preisblätter!I19","v":55},null,null,0]
[]
[null,"Monatliche MDE-Ablesung",{"$f":"Preisblätter!I20","v":696},null,null,0]
[{"$nulls":5},{"$f":"SUM(F18:F28)","v":8.58}]
[]
[null,"Jahresentgelt inklusive Messung netto",null,null,null,{"$f":"SUM(F18:F26)+F13","v":514.55568001209997}]

{"sheet":"RLM","index":1,"n_rows":38,"n_cols":6,"rows_kept":38,"cut":false,"hidden":false,"merged":[]}
[]
[null,"Netzentgeltrechner RLM 2026"]
[]
[]
[]
[null,"Bitte befüllen Sie die grünen Eingabefelder, um ihr prognostiziertes Netzentgelt zu ermitteln. "]
[]
[null,"Spannungsebene",null,"bitte auswählen",null,"Mittelspannung"]
[]
[null,"Arbeit",null,null,null,500001]
[]
[null,"Jahresmaximalleistung",null,null,null,200]
[]
[null,"Benutzungsstunden",null,null,null,{"$f":"F10/F12","v":2500.0050000000001}]
[]
[null,"Arbeispreis ct/kWh netto",null,null,null,{"$f":"IF(AND(F14<=2500,(F8=\"Niederspannung\")),Preisblätter!D10,IF(AND(F14<=2500,(F8=\"Umspannung NS\")),Preisblätter!D9,IF(AND(F14<=2500,(F8=\"Mittelspannung\")),Preisblätter!D8,IF(AND(F14>=2500,(F8=\"Niederspannung\")),Preisblätter!F10,IF(AND(F14>=2500,(F8=\"Umspannung NS\")),Preisblätter!F9,IF(AND(F14>=2500,(F8=\"Mittelspannung\")),Preisblätter!F8,))))))","v":7.8422162707281695E-2}]
[]
[null,"Leistungspreis €/kWa netto",null,null,null,{"$f":"IF(AND(F14<=2500,(F8=\"Niederspannung\")),Preisblätter!C10,IF(AND(F14<=2500,(F8=\"Umspannung NS\")),Preisblätter!C9,IF(AND(F14<=2500,(F8=\"Mittelspannung\")),Preisblätter!C8,IF(AND(F14>=2500,(F8=\"Niederspannung\")),Preisblätter!E10,IF(AND(F14>=2500,(F8=\"Umspannung NS\")),Preisblätter!E9,IF(AND(F14>=2500,(F8=\"Mittelspannung\")),Preisblätter!E8,))))))","v":238.591587820634}]
[]
[null,"Jahresentgelt ohne Messung netto",null,null,null,{"$f":"F16/100*F10+F18*F14","v":596872.27410728217}]
[]
[]
[null,"Messstellenbetrieb","€/Jahr netto","\"X\" eintragen, wenn zutreffend"]
[{"$nulls":5},{"$f":"IF(D24=\"x\",C24,0)","v":0}]
[null,"Mittelspannung",{"$f":"Preisblätter!I5","v":349.48},"x",null,349.48]
[{"$nulls":5},0]
[null,"Umspannung MS/NS",{"$f":"Preisblätter!I6","v":294.74},null,null,0]
[{"$nulls":5},0]
[null,"Niederspannung",{"$f":"Preisblätter!I7","v":294.74},null,null,0]
[{"$nulls":5},0]
[null,"Wandler Mittelspannung",{"$f":"Preisblätter!I8","v":95.38},null,null,0]
[{"$nulls":5},0]
[null,"Wandler Niederspannung",{"$f":"Preisblätter!I9","v":23.5},null,null,0]
[{"$nulls":5},0]
[null,"TK-Einrichtung für Fernauslesung",{"$f":"Preisblätter!I10","v":73.89},null,null,0]
[{"$nulls":5},{"$f":"SUM(F23:F33)","v":349.48}]
[]
[null,"Jahresentgelt inklusive Messung netto",null,null,null,{"$f":"SUM(F24:F35)+F20","v":597221.75410728215}]

{"sheet":"Preisblätter","index":2,"n_rows":27,"n_cols":10,"rows_kept":27,"cut":false,"hidden":true,"merged":[[23,1,24,1],[23,2,24,2],[23,3,24,3],[13,1,14,1],[13,2,14,2],[13,3,14,3],[18,1,19,1],[18,2,19,2],[18,3,19,3],[3,1,6,1],[3,2,4,3],[3,4,4,5],[5,2,6,2],[5,3,6,3],[5,4,6,4],[5,5,6,5]]}
[]
["Preise für die Nutzung der Netzinfrastruktur für Kunden mit Leistungsmessung (RLM)"]
[]
[null,"Art der Entnahmestelle","Jahresbenutzungsdauer\n< 2.500 Vollbenutzungsstunden",null,"Jahresbenutzungsdauer\n≥ 2.500 Vollbenutzungsstunden",null,null,"Messstellenbetrieb","€/Jahr netto","€/Jahr brutto²"]
[{"$nulls":7},"Mittelspannung",349.48,{"$f":"I5*119%","v":415.88119999999998}]
[null,null,"Leistungspreis\n€/kWa","Arbeitspreis\nct/kWh","Leistungspreis\n€/kWa","Arbeitspreis\nct/kWh",null,"Umspannung MS/NS",294.74,350.74059999999997]
[{"$nulls":7},"Niederspannung",294.74,{"$f":"I7*119%","v":350.74059999999997}]
[null,"Mittelspannung",21.232408442182901,8.7727893378453103,238.591587820634,7.8422162707281695E-2,null,"Wandler Mittelspannung",95.38,113.50219999999999]
[null,"Umspannung NS",22.169488266484386,9.2263359728072398,248.96554865917901,0.154493557099462,null,"Wandler Niederspannung",23.5,27.965]
[null,"Niederspannung",24.473437299382297,9.1480020801827404,185.768406954656,2.6962032939717799,null,"TK-Einrichtung für Fernauslesung",73.89,87.929099999999991]
[]
["Preise für die Nutzung der Netzinfrastruktur für Kunden mit Wirkarbeitszählung (SLP)"]
[]
[null,"Kunde im Niederspannungsnetz ohne Lastgangzählung","netto","brutto²",null,null,null,"Messstellenbetrieb","€/Jahr netto","€/Jahr brutto²"]
[{"$nulls":7},"Eintarifzähler",8.58,{"$f":"I15*119%","v":10.2102}]
[null,"Grundpreis €/a",77,91.63,null,null,null,"Zweitarifzähler \n(inkl. Tarifschaltung)",9.6199999999999992,{"$f":"I16*119%","v":11.447799999999999}]
[null,"Arbeitspreis ct/kWh",10.724392000302499,12.762026480359973,null,null,null,"EDL21 nach § 21b (3a) und (3b) EnWG a.F. (übergangsweise)",16.809999999999999,20.003899999999998]
[{"$nulls":7},"Wandler Niederspannung",23.5,27.965]
[null,"Entnahme durch Elektro-Speicherheizung / Wärmepumpe","netto","brutto²",null,null,null,"Kundendienstrelais",55,65.45]
[{"$nulls":7},"Monatliche MDE-Ablesung",696,828.24]
[null,"Grundpreis €/a",77,91.63]
[null,"Arbeitspreis ct/kWh",4.2897568001210002,5.1048105921439904]
[]
[null,"Entnahme durch Elektromobilität","netto","brutto²"]
[]
[null,"Grundpreis €/a",77,91.63]
[null,"Arbeitspreis ct/kWh",8.2577818402326955,9.8267603898769078]

{"sheet":"Tabelle4","index":3,"n_rows":5,"n_cols":4,"rows_kept":5,"cut":false,"hidden":true,"merged":[]}
[null,1,null,"<2500"]
[null,2,null,">2500"]
[null,3]
[null,4]
[null,5]